EXTRACTDATE,PUBLISHERURI,ORGANISATIONLABEL,EXPENSE DATE,VENDOR NAME ,COST CENTRE NAME,SUBJECTIVE DESCRIPTION,REQUESTED EXPENSE AMOUNT
09/09/2022,,LB of Brent,01/06/2022,British Gas Otp,NAIL Property Management,Supplies and Services Expenditure,46.67
09/09/2022,,LB of Brent,01/06/2022,British Gas Otp,NAIL Property Management,Supplies and Services Expenditure,49.00
09/09/2022,,LB of Brent,01/06/2022,British Gas Otp,TA Property Management,Supplies and Services Expenditure,46.67
09/09/2022,,LB of Brent,01/06/2022,British Gas Otp,NAIL Property Management,Supplies and Services Expenditure,46.67
09/09/2022,,LB of Brent,01/06/2022,British Gas Otp,NAIL Property Management,Supplies and Services Expenditure,94.29
09/09/2022,,LB of Brent,01/06/2022,Calendly,Brent Music Service,Supplies and Services Expenditure,8.27
09/09/2022,,LB of Brent,01/06/2022,Awards4u Llp,Brent Music Service,Supplies and Services Expenditure,16.00
09/09/2022,,LB of Brent,01/06/2022,Eb *crisis Communicati,Corporate Communications Unit,Supplies and Services Expenditure,114.00
09/09/2022,,LB of Brent,01/06/2022,Tesco Store 2122,Short Break Centre,Supplies and Services Expenditure,65.50
09/09/2022,,LB of Brent,01/06/2022,Amznmktplace,Short Break Centre,Supplies and Services Expenditure,91.66
09/09/2022,,LB of Brent,01/06/2022,Amazon.Co.Uk,Willows Nursery,Supplies and Services Expenditure,13.32
09/09/2022,,LB of Brent,01/06/2022,Flickr Pro Monthly,Digital Comms,Supplies and Services Expenditure,6.99
09/09/2022,,LB of Brent,01/06/2022,Archant Community Medi,Registration and Nationality Service,Supplies and Services Expenditure,187.56
09/09/2022,,LB of Brent,01/06/2022,Facebk 4bt39cbj92,Civic Centre Conference and Events,Supplies and Services Expenditure,96.58
09/09/2022,,LB of Brent,02/06/2022,Gsuite_bmsstaff.Com,Brent Music Service,Supplies and Services Expenditure,46.00
09/09/2022,,LB of Brent,02/06/2022,Amazon Prime,Willows Nursery,Supplies and Services Expenditure,6.66
09/09/2022,,LB of Brent,02/06/2022,Google Ads4976103558,Electoral Registration,Supplies and Services Expenditure,243.97
09/09/2022,,LB of Brent,03/06/2022,Uber* Eats,Short Break Centre,Supplies and Services Expenditure,10.96
09/09/2022,,LB of Brent,04/06/2022,Tesco Store 2122,Short Break Centre,Supplies and Services Expenditure,129.16
09/09/2022,,LB of Brent,04/06/2022,Thetrainline.Com,Food Safety,Supplies and Services Expenditure,72.30
09/09/2022,,LB of Brent,05/06/2022,Tesco Store 2122,Short Break Centre,Supplies and Services Expenditure,128.66
09/09/2022,,LB of Brent,06/06/2022,Thetrainline.Com,Food Safety,Supplies and Services Expenditure,-69.10
09/09/2022,,LB of Brent,04/06/2022,Trainline.Com,Food Safety,Supplies and Services Expenditure,104.49
09/09/2022,,LB of Brent,06/06/2022,Amazon Prime,NAIL Property Management,Supplies and Services Expenditure,0.82
09/09/2022,,LB of Brent,06/06/2022,Amznmktplace,NAIL Property Management,Supplies and Services Expenditure,14.99
09/09/2022,,LB of Brent,06/06/2022,British Gas Otp,NAIL Property Management,Supplies and Services Expenditure,46.67
09/09/2022,,LB of Brent,06/06/2022,British Gas Otp,NAIL Property Management,Supplies and Services Expenditure,46.67
09/09/2022,,LB of Brent,06/06/2022,British Gas Otp,NAIL Property Management,Supplies and Services Expenditure,46.67
09/09/2022,,LB of Brent,06/06/2022,British Gas Otp,NAIL Property Management,Supplies and Services Expenditure,46.67
09/09/2022,,LB of Brent,06/06/2022,British Gas Otp,NAIL Property Management,Supplies and Services Expenditure,46.67
09/09/2022,,LB of Brent,06/06/2022,British Gas Otp,NAIL Property Management,Supplies and Services Expenditure,46.67
09/09/2022,,LB of Brent,06/06/2022,British Gas Otp,NAIL Property Management,Supplies and Services Expenditure,46.67
09/09/2022,,LB of Brent,06/06/2022,British Gas Otp,NAIL Property Management,Supplies and Services Expenditure,46.67
09/09/2022,,LB of Brent,06/06/2022,Amznmktplace,TA Property Management,Supplies and Services Expenditure,41.66
09/09/2022,,LB of Brent,06/06/2022,Amazon.Co.Uk,Willows Nursery,Supplies and Services Expenditure,87.49
09/09/2022,,LB of Brent,06/06/2022,Www.Gwr.Com,Debt and Income,Supplies and Services Expenditure,292.40
09/09/2022,,LB of Brent,06/06/2022,Jayesh Florist,Customer Access Improvement and Performance,Financial Services,37.00
09/09/2022,,LB of Brent,06/06/2022,Amznmktplace,Political Group Support,Furniture and Soft Furnishings,38.32
09/09/2022,,LB of Brent,06/06/2022,Amazon.Co.Uk,Customer Access Improvement and Performance,Stationery,149.17
09/09/2022,,LB of Brent,06/06/2022,Amazon.Co.Uk,Customer Access Improvement and Performance,Stationery,149.17
09/09/2022,,LB of Brent,06/06/2022,Amazon.Co.Uk,Customer Access Improvement and Performance,Stationery,149.17
09/09/2022,,LB of Brent,06/06/2022,Amazon.Co.Uk,Customer Access Improvement and Performance,Stationery,149.17
09/09/2022,,LB of Brent,06/06/2022,Amazon.Co.Uk,Customer Access Improvement and Performance,Stationery,149.17
09/09/2022,,LB of Brent,07/06/2022,British Gas Otp,NAIL Property Management,Supplies and Services Expenditure,46.67
09/09/2022,,LB of Brent,07/06/2022,British Gas Otp,NAIL Property Management,Supplies and Services Expenditure,46.67
09/09/2022,,LB of Brent,07/06/2022,Amznmktplace,NAIL Property Management,Supplies and Services Expenditure,52.44
09/09/2022,,LB of Brent,07/06/2022,Tesco Store 2670,Gordon Brown Outdoor Education Centre,Supplies and Services Expenditure,9.33
09/09/2022,,LB of Brent,07/06/2022,Booker Limited Basingstok,Gordon Brown Outdoor Education Centre,Supplies and Services Expenditure,-22.47
09/09/2022,,LB of Brent,07/06/2022,Booker Limited Basingstok,Gordon Brown Outdoor Education Centre,Supplies and Services Expenditure,22.47
09/09/2022,,LB of Brent,07/06/2022,Jj Food Service - Basi,Gordon Brown Outdoor Education Centre,Supplies and Services Expenditure,34.99
09/09/2022,,LB of Brent,07/06/2022,Ikea Ltd 461 Reading Expr,Gordon Brown Outdoor Education Centre,Supplies and Services Expenditure,76.25
09/09/2022,,LB of Brent,07/06/2022,Tesco Store 2670,Gordon Brown Outdoor Education Centre,Supplies and Services Expenditure,79.38
09/09/2022,,LB of Brent,07/06/2022,Tesco Store 2080,Gordon Brown Outdoor Education Centre,Supplies and Services Expenditure,83.35
09/09/2022,,LB of Brent,07/06/2022,Sainsburys S/mkts,Heritage,Supplies and Services Expenditure,7.78
09/09/2022,,LB of Brent,07/06/2022,Sumup *a To Z Minicabs,Heritage,Supplies and Services Expenditure,30.00
09/09/2022,,LB of Brent,07/06/2022,Castle Water,Bridge Park Facilities,Utilities,608.21
09/09/2022,,LB of Brent,07/06/2022,Www.Venuescanner.Com,Electoral Registration,Supplies and Services Expenditure,118.80
09/09/2022,,LB of Brent,07/06/2022,Amznmktplace,Operational Costs - Facilities,Stationery,48.32
09/09/2022,,LB of Brent,07/06/2022,Schoolhire* B898794,Strategy and Partnerships,Financial Services,106.80
09/09/2022,,LB of Brent,07/06/2022,Amazon.Co.Uk,Brent Family Solutions,Supplies and Services Expenditure,20.97
09/09/2022,,LB of Brent,07/06/2022,Dvla Dup Reg Doc,Gordon Brown Outdoor Education Centre,Supplies and Services Expenditure,25.00
09/09/2022,,LB of Brent,08/06/2022,Dvla,Gordon Brown Outdoor Education Centre,Supplies and Services Expenditure,11.46
09/09/2022,,LB of Brent,08/06/2022,Poundland Ltd 1584,Gordon Brown Outdoor Education Centre,Supplies and Services Expenditure,17.71
09/09/2022,,LB of Brent,08/06/2022,Tesco Store 2080,Gordon Brown Outdoor Education Centre,Supplies and Services Expenditure,53.41
09/09/2022,,LB of Brent,08/06/2022,Dvla Evl Agent,Gordon Brown Outdoor Education Centre,Supplies and Services Expenditure,139.58
09/09/2022,,LB of Brent,08/06/2022,Tesco Store 2122,Short Break Centre,Supplies and Services Expenditure,71.90
09/09/2022,,LB of Brent,08/06/2022,Amznmktplace,Operational Costs - Facilities,Stationery,1.83
09/09/2022,,LB of Brent,08/06/2022,Amznmktplace,Reablement - Operational,Stationery,10.82
09/09/2022,,LB of Brent,08/06/2022,Amazon.Co.Uk,Customer Access Improvement and Performance,Stationery,179.00
09/09/2022,,LB of Brent,08/06/2022,Amznmktplace,Community Hubs,Furniture and Soft Furnishings,208.30
09/09/2022,,LB of Brent,08/06/2022,Amznmktplace,Brent Family Solutions,Supplies and Services Expenditure,68.85
09/09/2022,,LB of Brent,09/06/2022,Amznmktplace,Community Hubs,Furniture and Soft Furnishings,426.96
09/09/2022,,LB of Brent,09/06/2022,British Gas Otp,NAIL Property Management,Supplies and Services Expenditure,46.67
09/09/2022,,LB of Brent,09/06/2022,British Gas Otp,NAIL Property Management,Supplies and Services Expenditure,46.67
09/09/2022,,LB of Brent,09/06/2022,British Gas Otp,NAIL Property Management,Supplies and Services Expenditure,46.67
09/09/2022,,LB of Brent,09/06/2022,British Gas Otp,NAIL Property Management,Supplies and Services Expenditure,46.67
09/09/2022,,LB of Brent,09/06/2022,Robert Dyas Holdng Ltd,Gordon Brown Outdoor Education Centre,Supplies and Services Expenditure,13.98
09/09/2022,,LB of Brent,09/06/2022,Ebay O*09-08730-10796,Heritage,Supplies and Services Expenditure,5.99
09/09/2022,,LB of Brent,09/06/2022,Wf *wayfair3766317724,Heritage,Supplies and Services Expenditure,87.92
09/09/2022,,LB of Brent,09/06/2022,Amazon.Co.Uk,Brent Music Service,Supplies and Services Expenditure,11.49
09/09/2022,,LB of Brent,09/06/2022,Amznmktplace,Operational Costs - Facilities,Stationery,55.00
09/09/2022,,LB of Brent,09/06/2022,Kiln Theatre,Public Health Operational,Supplies and Services Expenditure,-60.00
09/09/2022,,LB of Brent,09/06/2022,Kiln Theatre,Public Health Operational,Supplies and Services Expenditure,60.00
09/09/2022,,LB of Brent,09/06/2022,Kiln Theatre,Public Health Operational,Supplies and Services Expenditure,-60.00
09/09/2022,,LB of Brent,09/06/2022,Kiln Theatre,Public Health Operational,Supplies and Services Expenditure,60.00
09/09/2022,,LB of Brent,09/06/2022,Kiln Theatre,Public Health Operational,Supplies and Services Expenditure,60.00
09/09/2022,,LB of Brent,09/06/2022,Squarespace Inc.,IT Operations,Supplies and Services Expenditure,48.00
09/09/2022,,LB of Brent,10/06/2022,Screwfix Dir Ltd,Gordon Brown Outdoor Education Centre,Supplies and Services Expenditure,51.05
09/09/2022,,LB of Brent,10/06/2022,Tesco Store 2080,Gordon Brown Outdoor Education Centre,Supplies and Services Expenditure,108.87
09/09/2022,,LB of Brent,10/06/2022,Tesco Store 3411,Gordon Brown Outdoor Education Centre,Supplies and Services Expenditure,122.69
09/09/2022,,LB of Brent,10/06/2022,Amznmktplace,Heritage,Arts and Leisure Services,1.88
09/09/2022,,LB of Brent,10/06/2022,Facebk Umc58f3hq2,Corporate Communications Unit,Supplies and Services Expenditure,17.00
09/09/2022,,LB of Brent,10/06/2022,London Borough Of,Audit and Investigations,Stationery,13.00
09/09/2022,,LB of Brent,10/06/2022,Argos Ltd,Afghan Resettlement Scheme,Furniture and Soft Furnishings,139.00
09/09/2022,,LB of Brent,10/06/2022,Argos Ltd,Afghan Resettlement Scheme,Furniture and Soft Furnishings,366.95
09/09/2022,,LB of Brent,10/06/2022,Sp Furnituremaxi,Afghan Resettlement Scheme,Furniture and Soft Furnishings,933.32
09/09/2022,,LB of Brent,11/06/2022,Tesco Store 2080,Gordon Brown Outdoor Education Centre,Supplies and Services Expenditure,42.36
09/09/2022,,LB of Brent,11/06/2022,Tesco Store 2080,Gordon Brown Outdoor Education Centre,Supplies and Services Expenditure,44.72
09/09/2022,,LB of Brent,11/06/2022,Tesco Store 2080,Gordon Brown Outdoor Education Centre,Supplies and Services Expenditure,103.16
09/09/2022,,LB of Brent,11/06/2022,Amazon Prime,Southwark IT Shared Service,Supplies and Services Expenditure,2.71
09/09/2022,,LB of Brent,11/06/2022,Amazon Prime,Brent Sicts,Supplies and Services Expenditure,2.06
09/09/2022,,LB of Brent,11/06/2022,Amazon Prime,Lewisham IT Shared Service,Supplies and Services Expenditure,1.89
09/09/2022,,LB of Brent,11/06/2022,1password,Brent Sicts,Supplies and Services Expenditure,10.16
09/09/2022,,LB of Brent,12/06/2022,Amznmktplace,TA Property Management,Supplies and Services Expenditure,47.61
09/09/2022,,LB of Brent,12/06/2022,Screwfix Dir Ltd,Gordon Brown Outdoor Education Centre,Supplies and Services Expenditure,182.55
09/09/2022,,LB of Brent,12/06/2022,Amznmktplace,Legal Support,Stationery,182.27
09/09/2022,,LB of Brent,13/06/2022,Amznmktplace,Operational Costs - Facilities,Stationery,14.16
09/09/2022,,LB of Brent,13/06/2022,British Gas Otp,NAIL Property Management,Supplies and Services Expenditure,46.67
09/09/2022,,LB of Brent,13/06/2022,British Gas Otp,NAIL Property Management,Supplies and Services Expenditure,46.67
09/09/2022,,LB of Brent,13/06/2022,Www.Direct2public.Com,Gordon Brown Outdoor Education Centre,Supplies and Services Expenditure,133.99
09/09/2022,,LB of Brent,13/06/2022,Sq *ken Trussler,Gordon Brown Outdoor Education Centre,Supplies and Services Expenditure,700.00
09/09/2022,,LB of Brent,13/06/2022,Uber* Trip,Heritage,Arts and Leisure Services,19.82
09/09/2022,,LB of Brent,13/06/2022,Ee Limited,Brent Music Service,Supplies and Services Expenditure,197.86
09/09/2022,,LB of Brent,13/06/2022,Bolt.Eu/O/2206131223,Short Break Centre,Supplies and Services Expenditure,23.50
09/09/2022,,LB of Brent,13/06/2022,Asda Groceries Online,Willows Nursery,Supplies and Services Expenditure,49.15
09/09/2022,,LB of Brent,13/06/2022,Stationery Office Book,Registration and Nationality Service,Supplies and Services Expenditure,28.35
09/09/2022,,LB of Brent,13/06/2022,Www.Thelawsociety.Org,Legal Support,Financial Services,197.00
09/09/2022,,LB of Brent,13/06/2022,Namesco,IT Operations,Supplies and Services Expenditure,4.79
09/09/2022,,LB of Brent,13/06/2022,Speedy Sameday Courier,Community Hubs,Financial Services,72.58
09/09/2022,,LB of Brent,13/06/2022,Amznmktplace,Afghan Resettlement Scheme,Financial Services,"1,012.50"
09/09/2022,,LB of Brent,13/06/2022,Total Equestrian,Gordon Brown Outdoor Education Centre,Supplies and Services Expenditure,199.50
09/09/2022,,LB of Brent,13/06/2022,Thetrainline.Com,Housing Needs Housing Options Team,Supplies and Services Expenditure,28.00
09/09/2022,,LB of Brent,13/06/2022,Aspect Cpm (UK) Ltd,Social Services Directorate,Supplies and Services Expenditure,164.72
09/09/2022,,LB of Brent,14/06/2022,Dunelm Ltd,Syrian Refugees Project,Supplies and Services Expenditure,500.00
09/09/2022,,LB of Brent,14/06/2022,Amz*duronic,TA Property Management,Supplies and Services Expenditure,-41.66
09/09/2022,,LB of Brent,14/06/2022,Scottishpower.Com,NAIL Property Management,Supplies and Services Expenditure,238.10
09/09/2022,,LB of Brent,14/06/2022,Scottishpower.Com,NAIL Property Management,Supplies and Services Expenditure,238.10
09/09/2022,,LB of Brent,14/06/2022,Tesco Store 2080,Gordon Brown Outdoor Education Centre,Supplies and Services Expenditure,13.70
09/09/2022,,LB of Brent,14/06/2022,Sainsburys S/mkts,Gordon Brown Outdoor Education Centre,Supplies and Services Expenditure,31.00
09/09/2022,,LB of Brent,14/06/2022,Associated Pallets Ltd,Gordon Brown Outdoor Education Centre,Supplies and Services Expenditure,573.84
09/09/2022,,LB of Brent,14/06/2022,Best4frames,Heritage,Arts and Leisure Services,185.71
09/09/2022,,LB of Brent,14/06/2022,Tesco Store 2122,Short Break Centre,Supplies and Services Expenditure,44.60
09/09/2022,,LB of Brent,14/06/2022,Www.Thelawsociety.Org,Legal Support,Financial Services,200.00
09/09/2022,,LB of Brent,14/06/2022,Harvest,Southwark IT Shared Service,Supplies and Services Expenditure,69.99
09/09/2022,,LB of Brent,14/06/2022,Harvest,Brent Sicts,Supplies and Services Expenditure,52.49
09/09/2022,,LB of Brent,14/06/2022,Harvest,Lewisham IT Shared Service,Supplies and Services Expenditure,49.08
09/09/2022,,LB of Brent,14/06/2022,Amznmktplace,Afghan Resettlement Scheme,Financial Services,992.46
09/09/2022,,LB of Brent,15/06/2022,Poundland Ltd,TA Property Management,Supplies and Services Expenditure,1.25
09/09/2022,,LB of Brent,15/06/2022,Poundland Ltd,TA Property Management,Supplies and Services Expenditure,2.38
09/09/2022,,LB of Brent,15/06/2022,Tesco Store 2670,Gordon Brown Outdoor Education Centre,Supplies and Services Expenditure,29.72
09/09/2022,,LB of Brent,15/06/2022,Accu.Co.Uk,Heritage,Arts and Leisure Services,8.26
09/09/2022,,LB of Brent,15/06/2022,Swrailway Tck Off,Bridge Park Facilities,Human Resources - Travel and Subsistence - Taxi Fares,20.30
09/09/2022,,LB of Brent,15/06/2022,Brent Parking,Brent Music Service,Supplies and Services Expenditure,15.00
09/09/2022,,LB of Brent,15/06/2022,Sp Fancy Tapes,Brent Music Service,Supplies and Services Expenditure,54.62
09/09/2022,,LB of Brent,15/06/2022,Facebk 36hrffkhq2,Corporate Communications Unit,Supplies and Services Expenditure,25.00
09/09/2022,,LB of Brent,15/06/2022,Amz*inandout-Distribut,Major Projects - South Kilburn,Stationery,-28.83
09/09/2022,,LB of Brent,15/06/2022,Amazon.Co.Uk,Customer Access Improvement and Performance,Stationery,152.55
09/09/2022,,LB of Brent,15/06/2022,Metropolis Events C-0c119,Cds Director,Financial Services,"2,900.00"
09/09/2022,,LB of Brent,15/06/2022,Tesco Store 2122,Short Break Centre,Supplies and Services Expenditure,80.11
09/09/2022,,LB of Brent,15/06/2022,Hmcts Westlondon073,Revenues,Supplies and Services Expenditure,"1,296.50"
09/09/2022,,LB of Brent,15/06/2022,Find A Will,Legal Support,Legal Services,1.50
09/09/2022,,LB of Brent,15/06/2022,Furniture-To-Go.Co,Afghan Resettlement Scheme,Furniture and Soft Furnishings,254.16
09/09/2022,,LB of Brent,15/06/2022,Argos Ltd,Afghan Resettlement Scheme,Furniture and Soft Furnishings,412.95
09/09/2022,,LB of Brent,15/06/2022,Tesco Store 2080,Gordon Brown Outdoor Education Centre,Supplies and Services Expenditure,173.44
09/09/2022,,LB of Brent,15/06/2022,Www.Brentgov.Uk,Housing Partnerships Service,Supplies and Services Expenditure,166.67
09/09/2022,,LB of Brent,16/06/2022,Amznmktplace,Brent Music Service,Supplies and Services Expenditure,34.14
09/09/2022,,LB of Brent,16/06/2022,Jayesh Florist,Mayors Prev Yrs,Stationery,30.83
09/09/2022,,LB of Brent,16/06/2022,Amznmktplace,Management (Customer Services),Stationery,53.27
09/09/2022,,LB of Brent,16/06/2022,Amznmktplace,Operational Costs - Property,Stationery,57.99
09/09/2022,,LB of Brent,16/06/2022,Www.Sign-Holders.Co.Uk,Operational Costs - Facilities,Stationery,376.20
09/09/2022,,LB of Brent,16/06/2022,Trainline.Com,Housing Needs Operational,Human Resources - Travel and Subsistence - Taxi Fares,151.54
09/09/2022,,LB of Brent,16/06/2022,Pantheon Systems Inc,Digital Comms,Supplies and Services Expenditure,42.64
09/09/2022,,LB of Brent,16/06/2022,Amznmktplace,Registration and Nationality Service,Supplies and Services Expenditure,40.90
09/09/2022,,LB of Brent,16/06/2022,Gen Register Office,Legal Support,Legal Services,11.00
09/09/2022,,LB of Brent,16/06/2022,Gen Register Office,Legal Support,Legal Services,11.00
09/09/2022,,LB of Brent,16/06/2022,Gen Register Office,Legal Support,Legal Services,11.00
09/09/2022,,LB of Brent,16/06/2022,Gen Register Office,Legal Support,Legal Services,11.00
09/09/2022,,LB of Brent,16/06/2022,Gen Register Office,Legal Support,Legal Services,11.00
09/09/2022,,LB of Brent,16/06/2022,Amznmktplace,Lewisham Sicts Consumables,Supplies and Services Expenditure,28.22
09/09/2022,,LB of Brent,16/06/2022,Amznmktplace,Operational Costs - Facilities,Stationery,36.79
09/09/2022,,LB of Brent,16/06/2022,Tesco Store 2080,Gordon Brown Outdoor Education Centre,Supplies and Services Expenditure,185.16
09/09/2022,,LB of Brent,17/06/2022,Amznmktplace,Environmental Monitoring,Stationery,11.66
09/09/2022,,LB of Brent,17/06/2022,British Gas Otp,NAIL Property Management,Supplies and Services Expenditure,46.67
09/09/2022,,LB of Brent,17/06/2022,British Gas Otp,NAIL Property Management,Supplies and Services Expenditure,46.67
09/09/2022,,LB of Brent,17/06/2022,British Gas Otp,NAIL Property Management,Supplies and Services Expenditure,46.67
09/09/2022,,LB of Brent,17/06/2022,British Gas Otp,NAIL Property Management,Supplies and Services Expenditure,46.67
09/09/2022,,LB of Brent,17/06/2022,British Gas Otp,NAIL Property Management,Supplies and Services Expenditure,46.67
09/09/2022,,LB of Brent,17/06/2022,British Gas Otp,NAIL Property Management,Supplies and Services Expenditure,46.67
09/09/2022,,LB of Brent,17/06/2022,Ao Retail Limited,Neighbourhood Services - Estate Services,Supplies and Services Expenditure,228.33
09/09/2022,,LB of Brent,17/06/2022,Ao Retail Limited,Neighbourhood Services - Estate Services,Supplies and Services Expenditure,331.67
09/09/2022,,LB of Brent,17/06/2022,Tesco Store 2080,Gordon Brown Outdoor Education Centre,Supplies and Services Expenditure,42.57
09/09/2022,,LB of Brent,17/06/2022,Www.Direct2public.Com,Gordon Brown Outdoor Education Centre,Supplies and Services Expenditure,-133.99
09/09/2022,,LB of Brent,17/06/2022,Amznmktplace,Brent Music Service,Supplies and Services Expenditure,24.98
09/09/2022,,LB of Brent,17/06/2022,Www.Mrtsshirts.Co.Uk,Brent Music Service,Supplies and Services Expenditure,304.00
09/09/2022,,LB of Brent,17/06/2022,Facebk Tjfbuethq2,Corporate Communications Unit,Supplies and Services Expenditure,40.00
09/09/2022,,LB of Brent,17/06/2022,Trainline.Com,Political Group Support,Passenger Transport,107.65
09/09/2022,,LB of Brent,17/06/2022,Amznmktplace,Short Break Centre,Supplies and Services Expenditure,6.63
09/09/2022,,LB of Brent,17/06/2022,Amznmktplace,Short Break Centre,Supplies and Services Expenditure,12.72
09/09/2022,,LB of Brent,17/06/2022,Amznmktplace,Short Break Centre,Supplies and Services Expenditure,23.42
09/09/2022,,LB of Brent,17/06/2022,Gen Register Office,Legal Support,Legal Services,11.00
09/09/2022,,LB of Brent,17/06/2022,Gen Register Office,Legal Support,Legal Services,11.00
09/09/2022,,LB of Brent,17/06/2022,Companieshouse Web Filing,Legal Support,Legal Services,15.00
09/09/2022,,LB of Brent,17/06/2022,Companieshouse Web Filing,Legal Support,Legal Services,15.00
09/09/2022,,LB of Brent,17/06/2022,Sainsburys Wembley,Emergency Planning,Catering,29.40
09/09/2022,,LB of Brent,17/06/2022,Sainsburys S/Mkts,Housing Needs Housing Options Team,Supplies and Services Expenditure,10.15
09/09/2022,,LB of Brent,17/06/2022,Sainsburys S/Mkts,Civic Centre Conference and Events,Supplies and Services Expenditure,3.00
09/09/2022,,LB of Brent,18/06/2022,Amznmktplace,Short Break Centre,Supplies and Services Expenditure,53.23
09/09/2022,,LB of Brent,18/06/2022,Tesco Store 2122,Short Break Centre,Supplies and Services Expenditure,166.08
09/09/2022,,LB of Brent,19/06/2022,Amznmktplace,Brent Music Service,Supplies and Services Expenditure,9.96
09/09/2022,,LB of Brent,19/06/2022,Amznmktplace,Brent Music Service,Supplies and Services Expenditure,32.46
09/09/2022,,LB of Brent,19/06/2022,Tooled Up Com,Traffic Management Act 2004,Supplies and Services Expenditure,34.45
09/09/2022,,LB of Brent,19/06/2022,Atlassian,Digital Comms,Supplies and Services Expenditure,10.15
09/09/2022,,LB of Brent,20/06/2022,Poundland Ltd 1584,Gordon Brown Outdoor Education Centre,Supplies and Services Expenditure,38.50
09/09/2022,,LB of Brent,20/06/2022,Booker Limited Basingstok,Gordon Brown Outdoor Education Centre,Supplies and Services Expenditure,462.98
09/09/2022,,LB of Brent,20/06/2022,Amznmktplace,Traffic Management Act 2004,Supplies and Services Expenditure,54.05
09/09/2022,,LB of Brent,20/06/2022,Amazon.Co.Uk,Customer Access Improvement and Performance,Stationery,148.15
09/09/2022,,LB of Brent,20/06/2022,Ikea Ltd Shop Online,Afghan Resettlement Scheme,Furniture and Soft Furnishings,819.17
09/09/2022,,LB of Brent,20/06/2022,Sp Furnituremaxi,Afghan Resettlement Scheme,Furniture and Soft Furnishings,933.33
09/09/2022,,LB of Brent,20/06/2022,Asda Groceries Online,Willows Nursery,Supplies and Services Expenditure,102.96
09/09/2022,,LB of Brent,20/06/2022,Hotjar,Digital Comms,Supplies and Services Expenditure,41.49
09/09/2022,,LB of Brent,20/06/2022,Amz*ofcasa,Community Hubs,Furniture and Soft Furnishings,-16.65
09/09/2022,,LB of Brent,20/06/2022,Marks&spencer Plc,I4B Property Management,Furniture and Soft Furnishings,117.00
09/09/2022,,LB of Brent,20/06/2022,Amz*ofcasa,Community Hubs,Furniture and Soft Furnishings,-190.82
09/09/2022,,LB of Brent,20/06/2022,Starbucks,Strategy and Partnerships,Financial Services,341.60
09/09/2022,,LB of Brent,20/06/2022,Post Office Counter,Gordon Brown Outdoor Education Centre,Supplies and Services Expenditure,7.65
09/09/2022,,LB of Brent,20/06/2022,Tesco Store 2080,Gordon Brown Outdoor Education Centre,Supplies and Services Expenditure,137.03
09/09/2022,,LB of Brent,20/06/2022,Sainsburys S/Mkts,Civic Centre Conference and Events,Supplies and Services Expenditure,3.10
09/09/2022,,LB of Brent,21/06/2022,1password,Brent Sicts,Supplies and Services Expenditure,9.14
09/09/2022,,LB of Brent,17/06/2022,Companieshouse Web Filing,Legal Support,Legal Services,-15.00
09/09/2022,,LB of Brent,17/06/2022,Www.Brentgov.Uk,Housing Needs Housing Options Team,Supplies and Services Expenditure,11.00
09/09/2022,,LB of Brent,21/06/2022,Travelodge Gb0000,Bed and Breakfast Hotels,Supplies and Services Expenditure,782.42
09/09/2022,,LB of Brent,21/06/2022,Sainsburys Smkts,Heritage,Arts and Leisure Services,82.00
09/09/2022,,LB of Brent,21/06/2022,Ikea Ltd Shop Online,Afghan Resettlement Scheme,Furniture and Soft Furnishings,776.67
09/09/2022,,LB of Brent,21/06/2022,Amazon.Co.Uk,Short Break Centre,Supplies and Services Expenditure,24.99
09/09/2022,,LB of Brent,21/06/2022,Atlassian,Social Services Directorate,Supplies and Services Expenditure,20.21
09/09/2022,,LB of Brent,21/06/2022,Intellisoftware Ltd,Southwark Sicts Consumables,Supplies and Services Expenditure,10.00
09/09/2022,,LB of Brent,21/06/2022,Amz*amazon.Co.Uk,Community Hubs,Stationery,-41.65
09/09/2022,,LB of Brent,21/06/2022,Amz*amazon.Co.Uk,Community Hubs,Stationery,-41.65
09/09/2022,,LB of Brent,22/06/2022,Wl It Re Fuelgenie,Building Cleaning,Supplies and Services Expenditure,"1,477.51"
09/09/2022,,LB of Brent,22/06/2022,Brent Parking,Brent Music Service,Supplies and Services Expenditure,15.00
09/09/2022,,LB of Brent,22/06/2022,Zoom.Us 888-799-9666,Brent Music Service,Supplies and Services Expenditure,562.85
09/09/2022,,LB of Brent,22/06/2022,Www.Ico.Org.Uk,I4B Property Management,Financial Services,40.00
09/09/2022,,LB of Brent,22/06/2022,Amznmktplace,Advice and Guidance,Stationery,42.32
09/09/2022,,LB of Brent,22/06/2022,Amznmktplace,Afghan Resettlement Scheme,Furniture and Soft Furnishings,737.50
09/09/2022,,LB of Brent,22/06/2022,Thetrainline.Com,Housing Needs Operational,Human Resources - Travel and Subsistence - Taxi Fares,139.30
09/09/2022,,LB of Brent,22/06/2022,Tesco Store 2122,Short Break Centre,Supplies and Services Expenditure,65.70
09/09/2022,,LB of Brent,22/06/2022,Costco Wholesale #128,Registration and Nationality Service,Supplies and Services Expenditure,14.16
09/09/2022,,LB of Brent,22/06/2022,Costco Wholesale #128,Registration and Nationality Service,Supplies and Services Expenditure,28.00
09/09/2022,,LB of Brent,22/06/2022,Tesco Store 2080,Gordon Brown Outdoor Education Centre,Supplies and Services Expenditure,170.61
09/09/2022,,LB of Brent,23/06/2022,Facebk 89zxyjphq2,Corporate Communications Unit,Supplies and Services Expenditure,28.81
09/09/2022,,LB of Brent,23/06/2022,Zaks Shoe Service,TA Property Management,Supplies and Services Expenditure,1.67
09/09/2022,,LB of Brent,23/06/2022,Poundland Ltd,TA Property Management,Supplies and Services Expenditure,4.79
09/09/2022,,LB of Brent,23/06/2022,British Gas Otp,NAIL Property Management,Supplies and Services Expenditure,46.67
09/09/2022,,LB of Brent,23/06/2022,British Gas Otp,NAIL Property Management,Supplies and Services Expenditure,46.67
09/09/2022,,LB of Brent,23/06/2022,British Gas Otp,NAIL Property Management,Supplies and Services Expenditure,46.67
09/09/2022,,LB of Brent,23/06/2022,British Gas Otp,NAIL Property Management,Supplies and Services Expenditure,46.67
09/09/2022,,LB of Brent,23/06/2022,Amazon.Co.Uk,Customer Access Improvement and Performance,Stationery,83.33
09/09/2022,,LB of Brent,23/06/2022,Amz*hughes Electrical,Afghan Resettlement Scheme,Furniture and Soft Furnishings,-304.17
09/09/2022,,LB of Brent,23/06/2022,Amznmktplace,Afghan Resettlement Scheme,Furniture and Soft Furnishings,-337.50
09/09/2022,,LB of Brent,23/06/2022,Amznmktplace,Afghan Resettlement Scheme,Furniture and Soft Furnishings,382.49
09/09/2022,,LB of Brent,24/06/2022,Asda Superstore 04881,Syrian Refugees Project,Supplies and Services Expenditure,543.03
09/09/2022,,LB of Brent,24/06/2022,Sainsburys Smkt,Heritage,Arts and Leisure Services,40.50
09/09/2022,,LB of Brent,24/06/2022,Schoolhire* B966195,Strategy and Partnerships,Financial Services,193.50
09/09/2022,,LB of Brent,24/06/2022,Amznmktplace,Short Break Centre,Supplies and Services Expenditure,22.31
09/09/2022,,LB of Brent,24/06/2022,Www.Asos.Com,Short Break Centre,Supplies and Services Expenditure,89.95
09/09/2022,,LB of Brent,24/06/2022,Thomas Telford Limit,Legal Support,Legal Services,71.50
09/09/2022,,LB of Brent,24/06/2022,Www.Thelawsociety.Org,Legal Support,Financial Services,100.00
09/09/2022,,LB of Brent,24/06/2022,Tesco Store 2080,Gordon Brown Outdoor Education Centre,Supplies and Services Expenditure,164.27
09/09/2022,,LB of Brent,25/06/2022,Currys Online,Corporate Communications Unit,Supplies and Services Expenditure,"2,004.00"
09/09/2022,,LB of Brent,25/06/2022,Tesco Store 2122,Short Break Centre,Supplies and Services Expenditure,98.50
09/09/2022,,LB of Brent,25/06/2022,Amazon.Co.Uk,Brent Family Solutions,Supplies and Services Expenditure,14.98
09/09/2022,,LB of Brent,26/06/2022,Tesco Store 2122,Short Break Centre,Supplies and Services Expenditure,-0.60
09/09/2022,,LB of Brent,26/06/2022,Tesco Store 2122,Short Break Centre,Supplies and Services Expenditure,63.57
09/09/2022,,LB of Brent,26/06/2022,Amznmktplace,Brent Family Solutions,Supplies and Services Expenditure,25.99
09/09/2022,,LB of Brent,27/06/2022,Jj Food Service - Basi,Gordon Brown Outdoor Education Centre,Supplies and Services Expenditure,112.90
09/09/2022,,LB of Brent,27/06/2022,Homebase Ltd 092,Heritage,Arts and Leisure Services,9.00
09/09/2022,,LB of Brent,27/06/2022,Paypal,Heritage,Supplies and Services Expenditure,39.00
09/09/2022,,LB of Brent,27/06/2022,Homebase,Bridge Park Facilities,Cleaning and Janitorial,7.95
09/09/2022,,LB of Brent,27/06/2022,Argos Ltd,Afghan Resettlement Scheme,Furniture and Soft Furnishings,91.67
09/09/2022,,LB of Brent,27/06/2022,Argos Ltd,Afghan Resettlement Scheme,Furniture and Soft Furnishings,250.79
09/09/2022,,LB of Brent,27/06/2022,Ikea Ltd Shop Online,Afghan Resettlement Scheme,Furniture and Soft Furnishings,"1,305.83"
09/09/2022,,LB of Brent,27/06/2022,Asda Groceries Online,Willows Nursery,Supplies and Services Expenditure,6.00
09/09/2022,,LB of Brent,27/06/2022,Instituteli,Emergency Planning,Human Resources - Training and Conferences,514.00
09/09/2022,,LB of Brent,27/06/2022,Amznmktplace,Afghan Resettlement Scheme,Furniture and Soft Furnishings,315.83
09/09/2022,,LB of Brent,27/06/2022,Amznmktplace,Brent Family Solutions,Supplies and Services Expenditure,71.69
09/09/2022,,LB of Brent,27/06/2022,Tesco Store 2080,Gordon Brown Outdoor Education Centre,Supplies and Services Expenditure,155.94
09/09/2022,,LB of Brent,28/06/2022,Amznmktplace,Civic Centre Conference and Events,Stationery,113.25
09/09/2022,,LB of Brent,28/06/2022,Asda Superstore 04881,Syrian Refugees Project,Supplies and Services Expenditure,633.60
09/09/2022,,LB of Brent,28/06/2022,Amznmktplace,TA Property Management,Supplies and Services Expenditure,44.12
09/09/2022,,LB of Brent,28/06/2022,Tex Hook,Gordon Brown Outdoor Education Centre,Supplies and Services Expenditure,80.24
09/09/2022,,LB of Brent,28/06/2022,Brent Parking,Brent Music Service,Supplies and Services Expenditure,15.00
09/09/2022,,LB of Brent,28/06/2022,Amazon.Co.Uk,Brent Music Service,Supplies and Services Expenditure,33.56
09/09/2022,,LB of Brent,28/06/2022,Costco Wholesale #128,Brent Music Service,Supplies and Services Expenditure,50.40
09/09/2022,,LB of Brent,28/06/2022,Amznmktplace,Early Years Central Services,Stationery,7.49
09/09/2022,,LB of Brent,28/06/2022,Amznmktplace,Civic Centre Conference and Events,Stationery,21.65
09/09/2022,,LB of Brent,28/06/2022,Asda Groceries Online,Willows Nursery,Supplies and Services Expenditure,-4.50
09/09/2022,,LB of Brent,28/06/2022,Asda Groceries Online,Willows Nursery,Supplies and Services Expenditure,92.79
09/09/2022,,LB of Brent,28/06/2022,Voucher Express,Social Services Directorate,Supplies and Services Expenditure,25.00
09/09/2022,,LB of Brent,28/06/2022,Voucher Express,Social Services Directorate,Supplies and Services Expenditure,25.00
09/09/2022,,LB of Brent,28/06/2022,Atlassian,Social Services Directorate,Supplies and Services Expenditure,222.54
09/09/2022,,LB of Brent,28/06/2022,Sainsburys S/Mkts,Civic Centre Conference and Events,Supplies and Services Expenditure,16.70
09/09/2022,,LB of Brent,28/06/2022,Sainsburys S/Mkts,Civic Centre Conference and Events,Supplies and Services Expenditure,19.36
09/09/2022,,LB of Brent,28/06/2022,Www.Rollaramp.Co.Uk,Civic Centre Conference and Events,Supplies and Services Expenditure,348.00
09/09/2022,,LB of Brent,28/06/2022,Tfl Roadchg Stdautopay,Building Cleaning,Supplies and Services Expenditure,739.58
09/09/2022,,LB of Brent,28/06/2022,The Old Swan Hotel,Member Development,Financial Services,275.00
09/09/2022,,LB of Brent,28/06/2022,The Old Swan Hotel,Member Development,Financial Services,275.00
09/09/2022,,LB of Brent,28/06/2022,The Old Swan Hotel,Member Development,Financial Services,275.00
09/09/2022,,LB of Brent,28/06/2022,The Old Swan Hotel,Political Group Support,Financial Services,408.33
09/09/2022,,LB of Brent,29/06/2022,Zaks Shoe Service,TA Property Management,Supplies and Services Expenditure,16.67
09/09/2022,,LB of Brent,29/06/2022,British Gas Otp,NAIL Property Management,Supplies and Services Expenditure,94.29
09/09/2022,,LB of Brent,29/06/2022,British Gas Otp,NAIL Property Management,Supplies and Services Expenditure,94.29
09/09/2022,,LB of Brent,29/06/2022,Wickes Basingstoke,Gordon Brown Outdoor Education Centre,Supplies and Services Expenditure,122.80
09/09/2022,,LB of Brent,29/06/2022,Amznmktplace,Customer Access Improvement and Performance,Stationery,4.16
09/09/2022,,LB of Brent,29/06/2022,Amznmktplace,Hr Operational,Stationery,18.63
09/09/2022,,LB of Brent,29/06/2022,"Typeform, S.L.",Operational Costs - Facilities,Supplies and Services Expenditure,48.72
09/09/2022,,LB of Brent,29/06/2022,Amazon Prime,Short Break Centre,Supplies and Services Expenditure,6.66
09/09/2022,,LB of Brent,29/06/2022,Tesco Store 2122,Short Break Centre,Supplies and Services Expenditure,67.67
09/09/2022,,LB of Brent,29/06/2022,Guides For Brides,Electoral Registration,Supplies and Services Expenditure,71.40
09/09/2022,,LB of Brent,29/06/2022,Sainsburys S/Mkts,Strategy and Partnerships,Financial Services,3.25
09/09/2022,,LB of Brent,29/06/2022,Tesco Store 2080,Gordon Brown Outdoor Education Centre,Supplies and Services Expenditure,-23.88
09/09/2022,,LB of Brent,29/06/2022,Tesco Store 2080,Gordon Brown Outdoor Education Centre,Supplies and Services Expenditure,121.92
09/09/2022,,LB of Brent,30/06/2022,Apple.Com/Uk,Management (Customer Services),Stationery,874.17
09/09/2022,,LB of Brent,28/06/2022,Ian McLauchlan,Brent Music Service,Supplies and Services Expenditure,55.00
09/09/2022,,LB of Brent,29/06/2022,The Old Swan Hotel,Political Group Support,Financial Services,-490.00
09/09/2022,,LB of Brent,30/06/2022,Amznmktplace,Political Group Support,Stationery,56.03
09/09/2022,,LB of Brent,30/06/2022,Www.Johnlewis.Com,Political Group Support,Stationery,70.00
09/09/2022,,LB of Brent,30/06/2022,Bolt.Eu/O/2206300801,Short Break Centre,Supplies and Services Expenditure,20.30
09/09/2022,,LB of Brent,30/06/2022,Amznmktplace,Short Break Centre,Supplies and Services Expenditure,33.60
09/09/2022,,LB of Brent,30/06/2022,Southern Railway Web,Debt and Income,Supplies and Services Expenditure,60.90
09/09/2022,,LB of Brent,30/06/2022,Amznmktplace,Brent Family Solutions,Supplies and Services Expenditure,37.36
09/09/2022,,LB of Brent,30/06/2022,Wilton Wholefoods,Gordon Brown Outdoor Education Centre,Supplies and Services Expenditure,67.01
09/09/2022,,LB of Brent,30/06/2022,Amznmktplace,Gordon Brown Outdoor Education Centre,Supplies and Services Expenditure,93.16
09/09/2022,,LB of Brent,30/06/2022,Asda Superstore 04881,Social Services Directorate,Supplies and Services Expenditure,21.50
09/09/2022,,LB of Brent,30/06/2022,Sainsburys S/Mkts,Civic Centre Conference and Events,Supplies and Services Expenditure,0.70
09/09/2022,,LB of Brent,30/06/2022,Facebk 9sys2dxj92,Civic Centre Conference and Events,Supplies and Services Expenditure,87.03
09/09/2022,,LB of Brent,30/06/2022,Trainline.Com,Housing Needs Operational,Human Resources - Travel and Subsistence - Taxi Fares,-139.30
09/09/2022,,LB of Brent,01/07/2022,Sportsdirect 674,Syrian Refugees Project,Supplies and Services Expenditure,9.00
09/09/2022,,LB of Brent,01/07/2022,Argos Wembley Cent,Syrian Refugees Project,Supplies and Services Expenditure,662.43
09/09/2022,,LB of Brent,01/07/2022,Calendly,Brent Music Service,Supplies and Services Expenditure,8.60
09/09/2022,,LB of Brent,01/07/2022,Amznmktplace,Brent Music Service,Supplies and Services Expenditure,22.98
09/09/2022,,LB of Brent,01/07/2022,Gsuite_bmsstaff.Com,Brent Music Service,Supplies and Services Expenditure,49.08
09/09/2022,,LB of Brent,01/07/2022,Facebk Ndcrpfxgq2,Corporate Communications Unit,Supplies and Services Expenditure,40.00
09/09/2022,,LB of Brent,01/07/2022,Hotel Brooklyn,Core Finance,Supplies and Services Expenditure,153.90
09/09/2022,,LB of Brent,01/07/2022,Google Ads4976103558,Electoral Registration,Supplies and Services Expenditure,241.43
09/09/2022,,LB of Brent,01/07/2022,Flickr Pro Monthly,Digital Comms,Supplies and Services Expenditure,6.99
09/09/2022,,LB of Brent,01/07/2022,Tesco Store 2080,Gordon Brown Outdoor Education Centre,Supplies and Services Expenditure,181.99
09/09/2022,,LB of Brent,01/07/2022,C2c-Online.Co.Uk,Housing Needs Housing Options Team,Supplies and Services Expenditure,34.30
09/09/2022,,LB of Brent,02/07/2022,Ikea Ltd Shop Online,Afghan Resettlement Scheme,Stationery,-464.00
09/09/2022,,LB of Brent,02/07/2022,Tesco Store 2122,Short Break Centre,Supplies and Services Expenditure,107.48
09/09/2022,,LB of Brent,02/07/2022,Amazon Prime,Willows Nursery,Supplies and Services Expenditure,6.66
09/09/2022,,LB of Brent,02/07/2022,Amz*amazon.Co.Uk,Afghan Resettlement Scheme,Furniture and Soft Furnishings,-262.49
09/09/2022,,LB of Brent,03/07/2022,Wh Smith,Bridge Park Facilities,Stationery,12.45
09/09/2022,,LB of Brent,03/07/2022,Amznmktplace,Brent Music Service,Supplies and Services Expenditure,23.32
09/09/2022,,LB of Brent,03/07/2022,Amznmktplace,Strategy and Partnerships,Stationery,14.03
09/09/2022,,LB of Brent,04/07/2022,Zaks Shoe Service,TA Property Management,Supplies and Services Expenditure,5.67
09/09/2022,,LB of Brent,04/07/2022,British Gas Otp,NAIL Property Management,Supplies and Services Expenditure,46.67
09/09/2022,,LB of Brent,04/07/2022,British Gas Otp,NAIL Property Management,Supplies and Services Expenditure,46.67
09/09/2022,,LB of Brent,04/07/2022,British Gas Otp,NAIL Property Management,Supplies and Services Expenditure,46.67
09/09/2022,,LB of Brent,04/07/2022,British Gas Otp,NAIL Property Management,Supplies and Services Expenditure,46.67
09/09/2022,,LB of Brent,04/07/2022,Sp Moo Free Wholesal,Climate Emergency Budget,Stationery,120.32
09/09/2022,,LB of Brent,04/07/2022,Asda Groceries Online,Willows Nursery,Supplies and Services Expenditure,-10.66
09/09/2022,,LB of Brent,04/07/2022,Asda Groceries Online,Willows Nursery,Supplies and Services Expenditure,103.69
09/09/2022,,LB of Brent,04/07/2022,Tesco Store 2080,Gordon Brown Outdoor Education Centre,Supplies and Services Expenditure,156.24
09/09/2022,,LB of Brent,04/07/2022,Amznmktplace,Social Services Directorate,Supplies and Services Expenditure,188.45
09/09/2022,,LB of Brent,01/06/2022,Psd Temp Dispute Credit,Brent Music Service,Supplies and Services Expenditure,-16.00
09/09/2022,,LB of Brent,05/07/2022,Tesco Store 2080,Gordon Brown Outdoor Education Centre,Supplies and Services Expenditure,4.68
09/09/2022,,LB of Brent,05/07/2022,Castle Water,Bridge Park Facilities,Supplies and Services Expenditure,880.69
09/09/2022,,LB of Brent,05/07/2022,Facebk Zvxwsfxgq2,Corporate Communications Unit,Supplies and Services Expenditure,60.00
09/09/2022,,LB of Brent,05/07/2022,Eb *urban Design Summe,Directorate (Strategic Director),Financial Services,300.00
09/09/2022,,LB of Brent,05/07/2022,Amznmktplace,Operational Costs - Facilities,Supplies and Services Expenditure,47.43
09/09/2022,,LB of Brent,05/07/2022,Asda Groceries Online,Willows Nursery,Supplies and Services Expenditure,-1.60
09/09/2022,,LB of Brent,05/07/2022,Companieshouse Web Filing,Legal Support,Legal Services,15.00
09/09/2022,,LB of Brent,05/07/2022,Intellisoftware Ltd,IT Operations,Supplies and Services Expenditure,12.00
09/09/2022,,LB of Brent,05/07/2022,Www.Screwfix.Com,IT Operations,Supplies and Services Expenditure,59.99
09/09/2022,,LB of Brent,05/07/2022,Amznmktplace,Gordon Brown Outdoor Education Centre,Supplies and Services Expenditure,6.81
09/09/2022,,LB of Brent,05/07/2022,Www.Express-Cleaning-Sup,Gordon Brown Outdoor Education Centre,Supplies and Services Expenditure,73.08
09/09/2022,,LB of Brent,05/07/2022,Amazon.Co.Uk,Social Services Directorate,Supplies and Services Expenditure,119.80
09/09/2022,,LB of Brent,06/07/2022,Amznmktplace,Brent Music Service,Supplies and Services Expenditure,41.79
09/09/2022,,LB of Brent,06/07/2022,Dunelm Ltd,Syrian Refugees Project,Supplies and Services Expenditure,431.00
09/09/2022,,LB of Brent,06/07/2022,Dunelm Ltd,Syrian Refugees Project,Supplies and Services Expenditure,557.00
09/09/2022,,LB of Brent,06/07/2022,Travelodge Gb0000,Neighbourhood Services - Estate Services,Supplies and Services Expenditure,"2,412.96"
09/09/2022,,LB of Brent,06/07/2022,Brent Parking,Brent Music Service,Supplies and Services Expenditure,15.00
09/09/2022,,LB of Brent,06/07/2022,Amznmktplace,Political Group Support,Stationery,19.99
09/09/2022,,LB of Brent,06/07/2022,Amazon.Co.Uk,Hr Operational,Stationery,71.15
09/09/2022,,LB of Brent,06/07/2022,Tesco Store 2122,Short Break Centre,Supplies and Services Expenditure,76.12
09/09/2022,,LB of Brent,06/07/2022,Londoncse077,Revenues,Supplies and Services Expenditure,954.00
09/09/2022,,LB of Brent,06/07/2022,Arena Mini Mart,Brent Family Solutions,Supplies and Services Expenditure,42.40
09/09/2022,,LB of Brent,06/07/2022,Arena Mini Mart,Brent Family Solutions,Supplies and Services Expenditure,50.00
09/09/2022,,LB of Brent,06/07/2022,Arena Mini Mart,Brent Family Solutions,Supplies and Services Expenditure,90.00
09/09/2022,,LB of Brent,06/07/2022,Arena Mini Mart,Brent Family Solutions,Supplies and Services Expenditure,100.00
09/09/2022,,LB of Brent,06/07/2022,Sainsburys S/Mkts,Civic Centre Conference and Events,Supplies and Services Expenditure,2.30
09/09/2022,,LB of Brent,07/07/2022,Amznmktplace,Civic Centre Conference and Events,Stationery,112.27
09/09/2022,,LB of Brent,07/07/2022,Tesco Store 2080,Gordon Brown Outdoor Education Centre,Supplies and Services Expenditure,56.28
09/09/2022,,LB of Brent,07/07/2022,Costco Wholesale #128,Brent Music Service,Supplies and Services Expenditure,74.56
09/09/2022,,LB of Brent,07/07/2022,Sainsburys Smkts,Brent Music Service,Supplies and Services Expenditure,224.00
09/09/2022,,LB of Brent,07/07/2022,Amznmktplace,Core Finance,Stationery,14.14
09/09/2022,,LB of Brent,07/07/2022,Calendly,Digital Strategy,Financial Services,173.06
09/09/2022,,LB of Brent,07/07/2022,C2e822400531o Ukvi,Schools Hr,Financial Services,"3,199.00"
09/09/2022,,LB of Brent,07/07/2022,Www.Venuescanner.Com,Electoral Registration,Supplies and Services Expenditure,118.80
09/09/2022,,LB of Brent,07/07/2022,Amazon.Co.Uk,Brent Family Solutions,Supplies and Services Expenditure,43.98
09/09/2022,,LB of Brent,07/07/2022,Sainsburys Wembley,Civic Centre Conference and Events,Supplies and Services Expenditure,16.75
09/09/2022,,LB of Brent,08/07/2022,Facebk 7m9wbfxhq2,Corporate Communications Unit,Supplies and Services Expenditure,90.00
09/09/2022,,LB of Brent,08/07/2022,Zaks Shoe Service,TA Property Management,Supplies and Services Expenditure,2.00
09/09/2022,,LB of Brent,08/07/2022,Calendly,Digital Strategy,Financial Services,33.44
09/09/2022,,LB of Brent,08/07/2022,Deliveroo,Short Break Centre,Supplies and Services Expenditure,16.13
09/09/2022,,LB of Brent,08/07/2022,Lul Ticket Machine,Early Years Central Services,Passenger Transport,20.00
09/09/2022,,LB of Brent,08/07/2022,Lul Ticket Machine,Early Years Central Services,Passenger Transport,50.00
09/09/2022,,LB of Brent,08/07/2022,Sainsburys S/Mkts,Civic Centre Conference and Events,Catering,11.60
09/09/2022,,LB of Brent,09/07/2022,Tesco Store 2122,Short Break Centre,Supplies and Services Expenditure,120.47
09/09/2022,,LB of Brent,09/07/2022,1password,IT Operations,Supplies and Services Expenditure,8.78
09/09/2022,,LB of Brent,10/07/2022,Facebk Ugpwgg7hq2,Corporate Communications Unit,Supplies and Services Expenditure,125.00
09/09/2022,,LB of Brent,10/07/2022,Amazon.Co.Uk,Commercial Portfolio,Stationery,13.93
09/09/2022,,LB of Brent,10/07/2022,Amazon.Co.Uk,Public Health Operational,Supplies and Services Expenditure,39.00
09/09/2022,,LB of Brent,11/07/2022,Tesco Store 2080,Gordon Brown Outdoor Education Centre,Supplies and Services Expenditure,186.60
09/09/2022,,LB of Brent,11/07/2022,Amz*amzob,Early Years Central Services,Stationery,-7.49
09/09/2022,,LB of Brent,11/07/2022,Asda Groceries Online,Willows Nursery,Supplies and Services Expenditure,-12.90
09/09/2022,,LB of Brent,11/07/2022,Asda Groceries Online,Willows Nursery,Supplies and Services Expenditure,79.20
09/09/2022,,LB of Brent,11/07/2022,Costco Wholesale #128,Emergency Planning,Facilities and Management Services,407.27
09/09/2022,,LB of Brent,11/07/2022,Amazon Prime,IT Operations,Supplies and Services Expenditure,6.66
09/09/2022,,LB of Brent,11/07/2022,Tesco Store 2080,Gordon Brown Outdoor Education Centre,Supplies and Services Expenditure,150.14
09/09/2022,,LB of Brent,11/07/2022,Amznmktplace,Social Services Directorate,Supplies and Services Expenditure,269.98
09/09/2022,,LB of Brent,11/07/2022,Www.Hsstraining.Com,Operational Costs - Facilities,Supplies and Services Expenditure,296.16
09/09/2022,,LB of Brent,12/07/2022,Ikea Ltd Shop Online,Syrian Refugees Project,Supplies and Services Expenditure,972.00
09/09/2022,,LB of Brent,12/07/2022,Ikea Ltd Shop Online,Syrian Refugees Project,Supplies and Services Expenditure,-972.00
09/09/2022,,LB of Brent,12/07/2022,Sp Aldi Grocery Vouc,Central Overheads,Supplies and Services Expenditure,33.33
09/09/2022,,LB of Brent,12/07/2022,Tesco Store 2670,Gordon Brown Outdoor Education Centre,Supplies and Services Expenditure,5.45
09/09/2022,,LB of Brent,12/07/2022,Costco Wholesale #128,Brent Music Service,Supplies and Services Expenditure,165.64
09/09/2022,,LB of Brent,12/07/2022,Amznmktplace,Early Years Central Services,Stationery,10.83
09/09/2022,,LB of Brent,12/07/2022,Thomas Telford Limit,Legal Support,Stationery,232.00
09/09/2022,,LB of Brent,12/07/2022,Amznmktplace,Willows Nursery,Supplies and Services Expenditure,56.18
09/09/2022,,LB of Brent,12/07/2022,Amznmktplace,Registration and Nationality Service,Supplies and Services Expenditure,19.15
09/09/2022,,LB of Brent,12/07/2022,Amznmktplace,Registration and Nationality Service,Supplies and Services Expenditure,32.47
09/09/2022,,LB of Brent,12/07/2022,Amznmktplace,Political Group Support,Stationery,4.15
09/09/2022,,LB of Brent,12/07/2022,Amznmktplace,Brent Family Solutions,Client Subsistence,16.98
09/09/2022,,LB of Brent,12/07/2022,Amazon.Co.Uk,Social Services Directorate,Supplies and Services Expenditure,200.00
09/09/2022,,LB of Brent,13/07/2022,Amznmktplace,Short Break Centre,Supplies and Services Expenditure,14.16
09/09/2022,,LB of Brent,12/07/2022,The Old Swan Hotel,Political Group Support,Financial Services,408.33
09/09/2022,,LB of Brent,13/07/2022,Ikea Ltd Shop Online,Syrian Refugees Project,Supplies and Services Expenditure,678.00
09/09/2022,,LB of Brent,13/07/2022,Zaks Shoe Service,TA Property Management,Supplies and Services Expenditure,2.00
09/09/2022,,LB of Brent,13/07/2022,Asda Superstore 04881,Central Overheads,Supplies and Services Expenditure,50.00
09/09/2022,,LB of Brent,13/07/2022,Asda Superstore 04881,Central Overheads,Supplies and Services Expenditure,116.67
09/09/2022,,LB of Brent,13/07/2022,Booker Limited Basingstok,Gordon Brown Outdoor Education Centre,Supplies and Services Expenditure,47.96
09/09/2022,,LB of Brent,13/07/2022,Amznmktplace,Public Health Operational,Supplies and Services Expenditure,69.99
09/09/2022,,LB of Brent,13/07/2022,Tesco Store 2122,Short Break Centre,Supplies and Services Expenditure,-2.20
09/09/2022,,LB of Brent,13/07/2022,Amznmktplace,Short Break Centre,Supplies and Services Expenditure,28.33
09/09/2022,,LB of Brent,13/07/2022,Tesco Store 2122,Short Break Centre,Supplies and Services Expenditure,80.27
09/09/2022,,LB of Brent,13/07/2022,Companieshouse Web Filing,Legal Support,Legal Services,15.00
09/09/2022,,LB of Brent,13/07/2022,Companieshouse Web Filing,Legal Support,Legal Services,15.00
09/09/2022,,LB of Brent,13/07/2022,Namesco,IT Operations,Supplies and Services Expenditure,4.79
09/09/2022,,LB of Brent,13/07/2022,Tesco Stores 6186,Brent Family Solutions,Client Subsistence,30.00
09/09/2022,,LB of Brent,13/07/2022,Argos Wembley West Olympi,Brent Family Solutions,Client Subsistence,272.95
09/09/2022,,LB of Brent,13/07/2022,Tesco Store 2080,Gordon Brown Outdoor Education Centre,Supplies and Services Expenditure,180.20
09/09/2022,,LB of Brent,14/07/2022,Tesco Store 2663,Central Overheads,Supplies and Services Expenditure,100.00
09/09/2022,,LB of Brent,14/07/2022,Tesco Store 2663,Central Overheads,Supplies and Services Expenditure,100.00
09/09/2022,,LB of Brent,14/07/2022,Shell Stirling Corner,Brent Music Service,Supplies and Services Expenditure,70.00
09/09/2022,,LB of Brent,14/07/2022,Eb *local Authority Sa,Food Safety,Supplies and Services Expenditure,50.00
09/09/2022,,LB of Brent,14/07/2022,Tesco Store 2080,Gordon Brown Outdoor Education Centre,Supplies and Services Expenditure,148.66
09/09/2022,,LB of Brent,15/07/2022,Ikea Ltd Shop Online,Syrian Refugees Project,Supplies and Services Expenditure,133.00
09/09/2022,,LB of Brent,15/07/2022,Ikea Ltd Shop Online,Syrian Refugees Project,Supplies and Services Expenditure,459.00
09/09/2022,,LB of Brent,15/07/2022,British Gas Online,TA Property Management,Supplies and Services Expenditure,94.29
09/09/2022,,LB of Brent,15/07/2022,British Gas Online,NAIL Property Management,Supplies and Services Expenditure,94.29
09/09/2022,,LB of Brent,15/07/2022,British Gas Online,NAIL Property Management,Supplies and Services Expenditure,94.29
09/09/2022,,LB of Brent,15/07/2022,British Gas Online,TA Property Management,Supplies and Services Expenditure,94.29
09/09/2022,,LB of Brent,15/07/2022,Scottishpower.Com,NAIL Property Management,Supplies and Services Expenditure,166.67
09/09/2022,,LB of Brent,15/07/2022,Deliveroo,Short Break Centre,Supplies and Services Expenditure,16.20
09/09/2022,,LB of Brent,15/07/2022,Tesco Store 2122,Short Break Centre,Supplies and Services Expenditure,122.53
09/09/2022,,LB of Brent,15/07/2022,Amznmktplace,Short Break Centre,Supplies and Services Expenditure,133.32
09/09/2022,,LB of Brent,15/07/2022,Amznmktplace,Brent Family Solutions,Client Subsistence,271.07
09/09/2022,,LB of Brent,16/07/2022,Pantheon Systems Inc,Digital Comms,Supplies and Services Expenditure,43.62
09/09/2022,,LB of Brent,16/07/2022,Sainsburys S/Mkts,Civic Centre Conference and Events,Supplies and Services Expenditure,1.65
09/09/2022,,LB of Brent,17/07/2022,Amznmktplace,Fostering Support Team A,Stationery,93.33
09/09/2022,,LB of Brent,17/07/2022,Amznmktplace,Fostering Support Team B,Stationery,93.32
09/09/2022,,LB of Brent,17/07/2022,Amazon.Co.Uk,Civic Centre - Av,Stationery,44.96
09/09/2022,,LB of Brent,18/07/2022,Ikea Ltd Shop Online,Syrian Refugees Project,Supplies and Services Expenditure,355.00
09/09/2022,,LB of Brent,18/07/2022,My.Morrisons.Com,Housing Partnerships Service,Supplies and Services Expenditure,16.67
09/09/2022,,LB of Brent,18/07/2022,Amazon.Co.Uk,Brent Music Service,Supplies and Services Expenditure,30.00
09/09/2022,,LB of Brent,18/07/2022,Trinity Onlinepay,Brent Music Service,Supplies and Services Expenditure,43.00
09/09/2022,,LB of Brent,18/07/2022,Www.Johnlewis.Com,Corporate Communications Unit,Supplies and Services Expenditure,"1,505.95"
09/09/2022,,LB of Brent,18/07/2022,Speedy Sameday Courier,Public Health Operational,Supplies and Services Expenditure,162.23
09/09/2022,,LB of Brent,18/07/2022,Avolites Ltd,Operational Costs - Facilities,Supplies and Services Expenditure,372.44
09/09/2022,,LB of Brent,18/07/2022,Gambling Commission,Strategy and Partnerships,Financial Services,40.00
09/09/2022,,LB of Brent,18/07/2022,Ebay O*18-08875-15224,Gordon Brown Outdoor Education Centre,Supplies and Services Expenditure,10.00
09/09/2022,,LB of Brent,18/07/2022,Ebay O*23-08873-71467,Gordon Brown Outdoor Education Centre,Supplies and Services Expenditure,17.62
09/09/2022,,LB of Brent,18/07/2022,Tesco Store 2080,Gordon Brown Outdoor Education Centre,Supplies and Services Expenditure,53.63
09/09/2022,,LB of Brent,19/07/2022,Atlassian,Digital Comms,Information Communication Technology,8.68
09/09/2022,,LB of Brent,19/07/2022,1password,IT Operations,Supplies and Services Expenditure,7.45
09/09/2022,,LB of Brent,18/07/2022,Argos Ltd,Syrian Refugees Project,Supplies and Services Expenditure,479.95
09/09/2022,,LB of Brent,18/07/2022,Rs Components,IT Operations,Supplies and Services Expenditure,130.52
09/09/2022,,LB of Brent,19/07/2022,Disclosure & Barring,Service Management and Support Services,Supplies and Services Expenditure,13.00
09/09/2022,,LB of Brent,19/07/2022,Dunelm Ltd,Syrian Refugees Project,Supplies and Services Expenditure,307.00
09/09/2022,,LB of Brent,19/07/2022,Dunelm Ltd,Syrian Refugees Project,Supplies and Services Expenditure,347.40
09/09/2022,,LB of Brent,19/07/2022,Solace Group,Transformation Team,Financial Services,250.00
09/09/2022,,LB of Brent,19/07/2022,Www.Ico.Org.Uk,Information Governance,Financial Services,"2,900.00"
09/09/2022,,LB of Brent,19/07/2022,Amznmktplace,Short Break Centre,Supplies and Services Expenditure,2.46
09/09/2022,,LB of Brent,19/07/2022,Asda Groceries Online,Willows Nursery,Supplies and Services Expenditure,66.87
09/09/2022,,LB of Brent,19/07/2022,Www.Cambridgeasses,Early Years Central Services,Social Community Care Supplies and Services,57.90
09/09/2022,,LB of Brent,19/07/2022,Sainsburys S/Mkts,Emergency Planning,Catering,43.67
09/09/2022,,LB of Brent,19/07/2022,Asda Superstore 04881,Emergency Planning,Facilities and Management Services,60.00
09/09/2022,,LB of Brent,19/07/2022,Amznmktplace,Brent Family Solutions,Client Subsistence,20.24
09/09/2022,,LB of Brent,19/07/2022,Amznmktplace,Gordon Brown Outdoor Education Centre,Supplies and Services Expenditure,16.67
09/09/2022,,LB of Brent,19/07/2022,Tesco Store 2080,Gordon Brown Outdoor Education Centre,Supplies and Services Expenditure,87.72
09/09/2022,,LB of Brent,20/07/2022,Www.Britishgas.Co.,Major Projects - South Kilburn,Supplies and Services Expenditure,95.11
09/09/2022,,LB of Brent,20/07/2022,Asda Superstore 04881,Training Costs - Learning and Staff Development,Supplies and Services Expenditure,16.00
09/09/2022,,LB of Brent,20/07/2022,Clean Scene,NAIL Property Management,Supplies and Services Expenditure,16.25
09/09/2022,,LB of Brent,20/07/2022,My.Morrisons.Com,Housing Partnerships Service,Supplies and Services Expenditure,-16.67
09/09/2022,,LB of Brent,20/07/2022,Amznmktplace,Approved Mental Health Practitioner Team,Stationery,45.83
09/09/2022,,LB of Brent,20/07/2022,C2e823700488j Ukvi,Schools Hr,Financial Services,"2,199.00"
09/09/2022,,LB of Brent,20/07/2022,Tesco Store 2122,Short Break Centre,Supplies and Services Expenditure,92.73
09/09/2022,,LB of Brent,20/07/2022,Travelodge Gb0000,Looked After Children Team D,Human Resources - Travel and Subsistence - Taxi Fares,94.33
09/09/2022,,LB of Brent,20/07/2022,Hotjar,Digital Comms,Information Communication Technology,34.29
09/09/2022,,LB of Brent,20/07/2022,Thomson Reuters UK Ltd,Legal Support,Supplies and Services Expenditure,172.80
09/09/2022,,LB of Brent,20/07/2022,Lul Ticket Machine,Early Years Central Services,Passenger Transport,30.00
09/09/2022,,LB of Brent,20/07/2022,Lul Ticket Machine,Early Years Central Services,Passenger Transport,30.00
09/09/2022,,LB of Brent,20/07/2022,Amznmktplace,Food Safety,Supplies and Services Expenditure,4.57
09/09/2022,,LB of Brent,20/07/2022,Amznmktplace,Food Safety,Supplies and Services Expenditure,11.46
09/09/2022,,LB of Brent,20/07/2022,Amznmktplace,Food Safety,Supplies and Services Expenditure,12.03
09/09/2022,,LB of Brent,20/07/2022,Amznmktplace,Food Safety,Supplies and Services Expenditure,28.39
09/09/2022,,LB of Brent,20/07/2022,Amazon.Co.Uk,Community Hubs,Stationery,53.33
09/09/2022,,LB of Brent,20/07/2022,Amznmktplace,Brent Family Solutions,Client Subsistence,38.25
09/09/2022,,LB of Brent,20/07/2022,Amznmktplace,Brent Family Solutions,Client Subsistence,58.75
09/09/2022,,LB of Brent,20/07/2022,Tesco Store 2080,Gordon Brown Outdoor Education Centre,Supplies and Services Expenditure,46.50
09/09/2022,,LB of Brent,21/07/2022,Amznmktplace,Operational Costs - Facilities,Supplies and Services Expenditure,117.04
09/09/2022,,LB of Brent,21/07/2022,C2e823800310r Ukvi,Major Projects - Central,Human Resources,"2,199.00"
09/09/2022,,LB of Brent,21/07/2022,Amznmktplace,Short Break Centre,Supplies and Services Expenditure,19.16
09/09/2022,,LB of Brent,21/07/2022,Costco Wholesale #128,Emergency Planning,Facilities and Management Services,561.87
09/09/2022,,LB of Brent,21/07/2022,Amznmktplace,Brent Family Solutions,Client Subsistence,8.98
09/09/2022,,LB of Brent,21/07/2022,Amazon.Co.Uk,ICP Transformation Team,Supplies and Services Expenditure,200.00
09/09/2022,,LB of Brent,21/07/2022,Amazon.Co.Uk,ICP Transformation Team,Supplies and Services Expenditure,300.00
09/09/2022,,LB of Brent,21/07/2022,Amazon.Co.Uk,ICP Transformation Team,Supplies and Services Expenditure,500.00
09/09/2022,,LB of Brent,22/07/2022,Notemachine,Reablement - Hdt Operational,Supplies and Services Expenditure,20.00
09/09/2022,,LB of Brent,22/07/2022,Ee Limited,Brent Music Service,Supplies and Services Expenditure,166.16
09/09/2022,,LB of Brent,22/07/2022,Zoom.Us 888-799-9666,Brent Music Service,Supplies and Services Expenditure,562.85
09/09/2022,,LB of Brent,22/07/2022,Amazon.Co.Uk,Transformation Team,Stationery,31.41
09/09/2022,,LB of Brent,22/07/2022,Deliveroo,Short Break Centre,Supplies and Services Expenditure,19.91
09/09/2022,,LB of Brent,22/07/2022,Tesco Store 2122,Short Break Centre,Supplies and Services Expenditure,35.60
09/09/2022,,LB of Brent,22/07/2022,One4all,YJB Disproportionately Project,Social Community Care Supplies and Services,500.00
09/09/2022,,LB of Brent,22/07/2022,Sainsburys Wembley,Brent Family Solutions,Passenger Transport,40.00
09/09/2022,,LB of Brent,22/07/2022,One Stitch Beyond,Brent Family Solutions,Client Subsistence,68.00
09/09/2022,,LB of Brent,22/07/2022,Deal Refridgeration Lt,Civic Centre Conference and Events,Supplies and Services Expenditure,708.00
09/09/2022,,LB of Brent,23/07/2022,Facebk U35sdgkhq2,Corporate Communications Unit,Supplies and Services Expenditure,129.49
09/09/2022,,LB of Brent,23/07/2022,Amazon.Co.Uk,Short Break Centre,Supplies and Services Expenditure,17.07
09/09/2022,,LB of Brent,23/07/2022,Tesco Store 2122,Short Break Centre,Supplies and Services Expenditure,145.16
09/09/2022,,LB of Brent,24/07/2022,Amznmktplace,Brent Family Solutions,Client Subsistence,261.15
09/09/2022,,LB of Brent,25/07/2022,Miscellaneous Fee - Cash Handling Fee @ 2.95%,Reablement - Hdt Operational,Supplies and Services Expenditure,0.59
09/09/2022,,LB of Brent,25/07/2022,British Gas Otp,NAIL Property Management,Supplies and Services Expenditure,94.29
09/09/2022,,LB of Brent,25/07/2022,British Gas Otp,NAIL Property Management,Supplies and Services Expenditure,94.29
09/09/2022,,LB of Brent,25/07/2022,British Gas Otp,Neighbourhood Services Team,Supplies and Services Expenditure,94.29
09/09/2022,,LB of Brent,25/07/2022,Equip4work Ltd,Community Hubs,Stationery,"4,319.00"
09/09/2022,,LB of Brent,25/07/2022,Amznmktplace,Operational Costs - Facilities,Supplies and Services Expenditure,25.82
09/09/2022,,LB of Brent,25/07/2022,Amznmktplace,Short Break Centre,Supplies and Services Expenditure,3.47
09/09/2022,,LB of Brent,25/07/2022,Asda Groceries Online,Willows Nursery,Supplies and Services Expenditure,-1.46
09/09/2022,,LB of Brent,25/07/2022,Asda Groceries Online,Willows Nursery,Supplies and Services Expenditure,64.32
09/09/2022,,LB of Brent,25/07/2022,Find A Will,Debt and Income,Supplies and Services Expenditure,1.50
09/09/2022,,LB of Brent,25/07/2022,Companieshouse Web Filing,Legal Support,Supplies and Services Expenditure,15.00
09/09/2022,,LB of Brent,25/07/2022,Companieshouse Web Filing,Legal Support,Supplies and Services Expenditure,15.00
09/09/2022,,LB of Brent,25/07/2022,Canadian Process Servi,Legal Support,Supplies and Services Expenditure,-77.89
09/09/2022,,LB of Brent,25/07/2022,Amazon Prime,ICP Transformation Team,Supplies and Services Expenditure,6.66
09/09/2022,,LB of Brent,26/07/2022,Accu.Co.Uk,Heritage,Arts and Leisure Services,12.64
09/09/2022,,LB of Brent,26/07/2022,Amznmktplace,Heritage,Arts and Leisure Services,230.29
09/09/2022,,LB of Brent,26/07/2022,Amazon.Co.Uk,Legal Support,Stationery,8.13
09/09/2022,,LB of Brent,26/07/2022,Amz*decor Trader,Civic Centre Conference and Events,Stationery,-21.65
09/09/2022,,LB of Brent,26/07/2022,Amznmktplace,Short Break Centre,Supplies and Services Expenditure,4.16
09/09/2022,,LB of Brent,26/07/2022,Amznmktplace,Short Break Centre,Supplies and Services Expenditure,13.98
09/09/2022,,LB of Brent,26/07/2022,Prime Video,Brent Family Solutions,Supplies and Services Expenditure,4.16
09/09/2022,,LB of Brent,26/07/2022,Argos Ltd,Brent Family Solutions,Supplies and Services Expenditure,59.98
09/09/2022,,LB of Brent,27/07/2022,Zaks Shoe Service,TA Property Management,Supplies and Services Expenditure,4.17
09/09/2022,,LB of Brent,27/07/2022,Gen Register Office,Neighbourhood Services - Estate Services,Supplies and Services Expenditure,14.00
09/09/2022,,LB of Brent,27/07/2022,British Gas Online,NAIL Property Management,Supplies and Services Expenditure,94.29
09/09/2022,,LB of Brent,27/07/2022,St Michaels Hospice,Gordon Brown Outdoor Education Centre,Supplies and Services Expenditure,21.75
09/09/2022,,LB of Brent,27/07/2022,Amazon.Co.Uk,Land Charges,Stationery,4.43
09/09/2022,,LB of Brent,27/07/2022,Calendly,Digital Strategy,Financial Services,5.96
09/09/2022,,LB of Brent,27/07/2022,Amznmktplace,OPPD Assessment and Support Planning Teams: North,Stationery,6.66
09/09/2022,,LB of Brent,27/07/2022,Amznmktplace,Operational Costs - Facilities,Stationery,87.42
09/09/2022,,LB of Brent,27/07/2022,Tesco Store 2122,Short Break Centre,Supplies and Services Expenditure,135.04
09/09/2022,,LB of Brent,27/07/2022,Asda Groceries Online,Willows Nursery,Supplies and Services Expenditure,6.00
09/09/2022,,LB of Brent,27/07/2022,Guides For Brides,Electoral Registration,Supplies and Services Expenditure,71.40
09/09/2022,,LB of Brent,27/07/2022,Amznmktplace,Locality and Safeguarding Management Team,Healthcare - Equipment,19.54
09/09/2022,,LB of Brent,27/07/2022,Amznmktplace,Brent Family Solutions,Supplies and Services Expenditure,185.47
09/09/2022,,LB of Brent,27/07/2022,Prime Video,ICP Transformation Team,Supplies and Services Expenditure,4.99
09/09/2022,,LB of Brent,28/07/2022,1password,IT Operations,Supplies and Services Expenditure,6.13
09/09/2022,,LB of Brent,27/07/2022,Ikea Ltd Shop Online,Syrian Refugees Project,Supplies and Services Expenditure,272.00
09/09/2022,,LB of Brent,28/07/2022,Www.Westminster.Gov.Uk,Neighbourhood Services - Estate Services,Supplies and Services Expenditure,16.00
09/09/2022,,LB of Brent,28/07/2022,Www.Anyvan.Com,Neighbourhood Services - Estate Services,Supplies and Services Expenditure,88.33
09/09/2022,,LB of Brent,28/07/2022,Scottish Power,NAIL Property Management,Supplies and Services Expenditure,190.48
09/09/2022,,LB of Brent,28/07/2022,Scottish Power,NAIL Property Management,Supplies and Services Expenditure,190.48
09/09/2022,,LB of Brent,28/07/2022,Primitive-Tech,Nlhf Heritage 2020,Arts and Leisure Services,24.86
09/09/2022,,LB of Brent,28/07/2022,Londoncse077,Revenues,Supplies and Services Expenditure,466.00
09/09/2022,,LB of Brent,28/07/2022,Tfl Roadchg Stdautopay,Building Cleaning,Supplies and Services Expenditure,531.25
09/09/2022,,LB of Brent,28/07/2022,Www.Sofmilitary.Co.Uk,Nlhf Heritage 2020,Arts and Leisure Services,43.94
09/09/2022,,LB of Brent,29/07/2022,Teamup Calendar,Brent Music Service,Supplies and Services Expenditure,98.34
09/09/2022,,LB of Brent,29/07/2022,"Typeform, S.L.",Operational Costs - Facilities,Supplies and Services Expenditure,48.72
09/09/2022,,LB of Brent,29/07/2022,Amazon Prime,Short Break Centre,Supplies and Services Expenditure,6.66
09/09/2022,,LB of Brent,29/07/2022,Deliveroo,Short Break Centre,Supplies and Services Expenditure,18.36
09/09/2022,,LB of Brent,29/07/2022,Gardening Express Ltd,Short Break Centre,Supplies and Services Expenditure,146.79
09/09/2022,,LB of Brent,29/07/2022,Amznmktplace,Operational Costs - Facilities,Stationery,78.89
09/09/2022,,LB of Brent,29/07/2022,Amznmktplace,ICP Transformation Team,Supplies and Services Expenditure,8.40
09/09/2022,,LB of Brent,30/07/2022,Tesco Store 2122,Short Break Centre,Supplies and Services Expenditure,112.86
09/09/2022,,LB of Brent,31/07/2022,Amznmktplace,Client Affairs,Stationery,79.34
09/09/2022,,LB of Brent,31/07/2022,Amznmktplace,Brent Family Solutions,Supplies and Services Expenditure,80.78
09/09/2022,,LB of Brent,01/08/2022,Zaks Shoe Service,TA Property Management,Supplies and Services Expenditure,5.00
09/09/2022,,LB of Brent,01/08/2022,Www.Westminster.Gov.Uk,Neighbourhood Services - Estate Services,Supplies and Services Expenditure,-5.00
09/09/2022,,LB of Brent,01/08/2022,Www.Westminster.Gov.Uk,Neighbourhood Services - Estate Services,Supplies and Services Expenditure,-11.00
09/09/2022,,LB of Brent,01/08/2022,Sp Smiffys.Com,Nlhf Heritage 2020,Arts and Leisure Services,47.47
09/09/2022,,LB of Brent,01/08/2022,Calendly,Brent Music Service,Supplies and Services Expenditure,8.49
09/09/2022,,LB of Brent,01/08/2022,Gsuite_bmsstaff.Com,Brent Music Service,Supplies and Services Expenditure,55.20
09/09/2022,,LB of Brent,01/08/2022,B&q Ltd,Short Break Centre,Supplies and Services Expenditure,52.00
09/09/2022,,LB of Brent,01/08/2022,Asda Groceries Online,Willows Nursery,Supplies and Services Expenditure,42.66
09/09/2022,,LB of Brent,01/08/2022,Flickr Pro Monthly,Digital Comms,Supplies and Services Expenditure,5.82
09/09/2022,,LB of Brent,01/08/2022,Tesco Store 2080,Gordon Brown Outdoor Education Centre,Supplies and Services Expenditure,82.68
09/09/2022,,LB of Brent,01/08/2022,Holyart.Co.Uk - 1592954,Nlhf Heritage 2020,Arts and Leisure Services,60.27
09/09/2022,,LB of Brent,01/08/2022,Holyart.Co.Uk - 1592985,Nlhf Heritage 2020,Arts and Leisure Services,61.75
09/09/2022,,LB of Brent,02/08/2022,Currys Online,Syrian Refugees Project,Supplies and Services Expenditure,422.00
09/09/2022,,LB of Brent,02/08/2022,Ikea Ltd Shop Online,Syrian Refugees Project,Supplies and Services Expenditure,535.50
09/09/2022,,LB of Brent,02/08/2022,British Gas Otp,NAIL Property Management,Supplies and Services Expenditure,94.29
09/09/2022,,LB of Brent,02/08/2022,British Gas Online,NAIL Property Management,Supplies and Services Expenditure,99.00
09/09/2022,,LB of Brent,02/08/2022,Oak Furniture Supersto,NAIL Property Management,Supplies and Services Expenditure,363.79
09/09/2022,,LB of Brent,02/08/2022,Screwfix Dir Ltd,Gordon Brown Outdoor Education Centre,Supplies and Services Expenditure,98.57
09/09/2022,,LB of Brent,02/08/2022,Amazon.Co.Uk,Lewisham IT Shared Service,Supplies and Services Expenditure,17.42
09/09/2022,,LB of Brent,02/08/2022,Property Debt Collection,I4B Property Management,Financial Services,"1,186.00"
09/09/2022,,LB of Brent,02/08/2022,Amazon Prime,Willows Nursery,Supplies and Services Expenditure,6.66
09/09/2022,,LB of Brent,02/08/2022,Sumup *udezignit,Registration and Nationality Service,Supplies and Services Expenditure,250.00
09/09/2022,,LB of Brent,02/08/2022,Total Equestrian,Gordon Brown Outdoor Education Centre,Supplies and Services Expenditure,78.75
09/09/2022,,LB of Brent,03/08/2022,Ikea Ltd Shop Online,Syrian Refugees Project,Supplies and Services Expenditure,"1,493.00"
09/09/2022,,LB of Brent,03/08/2022,Oak Furniture Supersto,NAIL Property Management,Supplies and Services Expenditure,896.67
09/09/2022,,LB of Brent,03/08/2022,Amznmktplace,Brent Sicts,Supplies and Services Expenditure,22.49
09/09/2022,,LB of Brent,03/08/2022,Amznmktplace,Short Break Centre,Supplies and Services Expenditure,3.61
09/09/2022,,LB of Brent,03/08/2022,Amznmktplace,Short Break Centre,Supplies and Services Expenditure,7.70
09/09/2022,,LB of Brent,03/08/2022,Amznmktplace,Short Break Centre,Supplies and Services Expenditure,11.03
09/09/2022,,LB of Brent,03/08/2022,Amznmktplace,Short Break Centre,Supplies and Services Expenditure,18.71
09/09/2022,,LB of Brent,03/08/2022,Tesco Store 2122,Short Break Centre,Supplies and Services Expenditure,61.79
09/09/2022,,LB of Brent,03/08/2022,Tk Maxx,Willows Nursery,Supplies and Services Expenditure,17.99
09/09/2022,,LB of Brent,03/08/2022,Currys Online,Early Years Central Services,Supplies and Services Expenditure,164.00
09/09/2022,,LB of Brent,03/08/2022,Asda Superstore 04881,Brent Family Solutions,Supplies and Services Expenditure,20.00
09/09/2022,,LB of Brent,04/08/2022,Amznmktplace,Short Break Centre,Supplies and Services Expenditure,7.99
09/09/2022,,LB of Brent,04/08/2022,Notemachine,Reablement - Hdt Operational,Supplies and Services Expenditure,30.00
09/09/2022,,LB of Brent,04/08/2022,British Gas Online,TA Property Management,Supplies and Services Expenditure,94.29
09/09/2022,,LB of Brent,04/08/2022,Castle Water,Bridge Park Facilities,Utilities,826.12
09/09/2022,,LB of Brent,04/08/2022,Highstreetvouchers,Transformation Team,Financial Services,-304.25
09/09/2022,,LB of Brent,04/08/2022,Highstreetvouchers,Transformation Team,Financial Services,304.25
09/09/2022,,LB of Brent,04/08/2022,Highstreetvouchers,Transformation Team,Financial Services,304.25
09/09/2022,,LB of Brent,04/08/2022,Highstreetvouchers,Transformation Team,Financial Services,-304.25
09/09/2022,,LB of Brent,04/08/2022,Argos Wembley West Olympi,Early Years Central Services,Supplies and Services Expenditure,100.00
09/09/2022,,LB of Brent,04/08/2022,Argos Wembley West Olympi,Early Years Central Services,Supplies and Services Expenditure,100.00
09/09/2022,,LB of Brent,04/08/2022,Sainsburys S/Mkts,Early Years Central Services,Supplies and Services Expenditure,200.00
09/09/2022,,LB of Brent,04/08/2022,Amz*hughes Electrical,Afghan Resettlement Scheme,Furniture and Soft Furnishings,-315.83
09/09/2022,,LB of Brent,04/08/2022,Amznmktplace,Brent Family Solutions,Supplies and Services Expenditure,257.84
09/09/2022,,LB of Brent,05/08/2022,Miscellaneous Fee - Cash Handling Fee @ 2.95%,Reablement - Hdt Operational,Supplies and Services Expenditure,0.89
09/09/2022,,LB of Brent,05/08/2022,Highstreetvouchers,Transformation Team,Financial Services,306.50
09/09/2022,,LB of Brent,05/08/2022,Amznmktplace,Short Break Centre,Supplies and Services Expenditure,6.99
09/09/2022,,LB of Brent,05/08/2022,Amznmktplace,Short Break Centre,Supplies and Services Expenditure,7.32
09/09/2022,,LB of Brent,05/08/2022,Amznmktplace,Short Break Centre,Supplies and Services Expenditure,9.70
09/09/2022,,LB of Brent,05/08/2022,Deliveroo,Short Break Centre,Supplies and Services Expenditure,15.83
09/09/2022,,LB of Brent,05/08/2022,Amznmktplace,Short Break Centre,Supplies and Services Expenditure,25.02
09/09/2022,,LB of Brent,07/08/2022,Calendly,Digital Strategy,Financial Services,223.05
09/09/2022,,LB of Brent,07/08/2022,Amznmktplace,Brent Family Solutions,Supplies and Services Expenditure,40.17
09/09/2022,,LB of Brent,07/08/2022,Amazon.Co.Uk,Brent Family Solutions,Supplies and Services Expenditure,129.98
09/09/2022,,LB of Brent,07/08/2022,Amazon.Co.Uk,Brent Family Solutions,Supplies and Services Expenditure,129.98
09/09/2022,,LB of Brent,08/08/2022,Amznmktplace,Registration and Nationality Service,Supplies and Services Expenditure,391.57
09/09/2022,,LB of Brent,06/08/2022,Scottish Power,NAIL Property Management,Supplies and Services Expenditure,95.24
09/09/2022,,LB of Brent,06/08/2022,Scottish Power,NAIL Property Management,Supplies and Services Expenditure,190.48
09/09/2022,,LB of Brent,08/08/2022,Zaks Shoe Service,TA Property Management,Supplies and Services Expenditure,13.40
09/09/2022,,LB of Brent,08/08/2022,British Gas Online,NAIL Property Management,Supplies and Services Expenditure,94.29
09/09/2022,,LB of Brent,08/08/2022,British Gas Online,TA Property Management,Supplies and Services Expenditure,94.29
09/09/2022,,LB of Brent,08/08/2022,Amznmktplace,Lewisham IT Shared Service,Supplies and Services Expenditure,4.99
09/09/2022,,LB of Brent,08/08/2022,Amazon.Co.Uk,Legal Support,Supplies and Services Expenditure,26.58
09/09/2022,,LB of Brent,08/08/2022,Find A Will,Legal Support,Legal Services,1.50
09/09/2022,,LB of Brent,08/08/2022,Companieshouse Web Filing,Legal Support,Legal Services,15.00
09/09/2022,,LB of Brent,08/08/2022,Asda Groceries Online,Willows Nursery,Supplies and Services Expenditure,-0.50
09/09/2022,,LB of Brent,08/08/2022,Tk Maxx,Willows Nursery,Supplies and Services Expenditure,-17.99
09/09/2022,,LB of Brent,08/08/2022,Tk Maxx,Willows Nursery,Supplies and Services Expenditure,19.99
09/09/2022,,LB of Brent,08/08/2022,Asda Superstore 04881,Willows Nursery,Supplies and Services Expenditure,39.05
09/09/2022,,LB of Brent,08/08/2022,Asda Groceries Online,Willows Nursery,Supplies and Services Expenditure,56.78
09/09/2022,,LB of Brent,08/08/2022,Amznmktplace,Registration and Nationality Service,Supplies and Services Expenditure,78.28
09/09/2022,,LB of Brent,08/08/2022,Amznmktplace,Gordon Brown Outdoor Education Centre,Supplies and Services Expenditure,29.11
09/09/2022,,LB of Brent,09/08/2022,Ikea Ltd Shop Online,Syrian Refugees Project,Supplies and Services Expenditure,358.00
09/09/2022,,LB of Brent,09/08/2022,Amazon.Co.Uk,Traffic Management Act 2004,Supplies and Services Expenditure,50.00
09/09/2022,,LB of Brent,09/08/2022,Amz*amazon.Co.Uk,Short Break Centre,Supplies and Services Expenditure,-30.02
09/09/2022,,LB of Brent,09/08/2022,Amznmktplace,Leaving Care Team C,Supplies and Services Expenditure,15.00
09/09/2022,,LB of Brent,09/08/2022,Gen Register Office,Debt and Income,Supplies and Services Expenditure,11.00
09/09/2022,,LB of Brent,09/08/2022,Gen Register Office,Debt and Income,Supplies and Services Expenditure,22.00
09/09/2022,,LB of Brent,09/08/2022,Tesco Store 2080,Gordon Brown Outdoor Education Centre,Supplies and Services Expenditure,179.80
